fUST/lending_fUST_20260106
["ID","MTS","AMOUNT","RATE_DAILY","PERIOD"]
[400498975,1767671445028,-1044.59336019,0.00015342,2]
[400498976,1767671445037,-2000.0,0.00015342,2]
[400498977,1767671445046,-642.90527904,0.00015342,2]
[400498978,1767671445055,-1083.90657441,0.00015342,2]
[400498979,1767671445064,-2000.0,0.00015342,2]
[400498980,1767671445073,-2005.12105821,0.00015342,2]
[400498981,1767671445083,-2000.0,0.00015342,2]
[400498982,1767671445091,-2000.0,0.00015342,2]
[400498983,1767671445103,-2500.0,0.00015464,2]
[400498984,1767671445113,-1179.86301717,0.00015464,2]
[400498985,1767671445127,-2500.0,0.00015464,2]
[400498986,1767671445135,-1861.15798132,0.00015464,2]
[400498987,1767671445145,-2500.0,0.00015464,2]
[400498988,1767671445154,-2500.0,0.00015464,2]
[400498989,1767671445164,-2500.0,0.00015464,2]
[400498990,1767671445173,-2500.0,0.00015464,2]
[400498991,1767671445183,-347.0,0.0001572,2]
[400498992,1767671445192,-347.0,0.0001572,2]
[400498993,1767671445202,-151.0,0.0001572,2]
[400498994,1767671445211,-152.37094009,0.0001572,2]
[400498995,1767671445220,-347.0,0.0001572,2]
[400498996,1767671445229,-172.0,0.0001572,2]
[400498997,1767671445239,-336.0,0.0001572,2]
[400498998,1767671445248,-151.0,0.0001572,2]
[400498999,1767671445256,-347.0,0.0001572,2]
[400499000,1767671445265,-151.0,0.0001572,2]
[400499001,1767671445275,-347.0,0.0001572,2]
[400499002,1767671445284,-336.0,0.0001572,2]
[400499003,1767671445293,-347.0,0.0001572,2]
[400499004,1767671445302,-151.0,0.0001572,2]
[400499005,1767671445311,-336.0,0.0001572,2]
[400499006,1767671445320,-336.0,0.0001572,2]
[400499007,1767671445329,-151.0,0.0001572,2]
[400499008,1767671445338,-347.0,0.0001572,2]
[400499009,1767671445352,-151.0,0.0001572,2]
[400499010,1767671445360,-336.0,0.0001572,2]
[400499011,1767671445369,-151.0,0.0001572,2]
[400499012,1767671445378,-336.0,0.0001572,2]
[400499013,1767671445511,-151.0,0.0001572,2]
[400499014,1767671445521,-151.0,0.0001572,2]
[400499015,1767671445531,-347.0,0.0001572,2]
[400499016,1767671445540,-336.0,0.0001572,2]
[400499017,1767671445549,-337.0,0.0001572,2]
[400499018,1767671445558,-187.9115595,0.0001572,2]
[400499019,1767671445567,-345.97099875,0.0001572,2]
[400499021,1767671445577,-347.0,0.0001572,2]
[400499023,1767671445586,-347.0,0.0001572,2]
[400499025,1767671445595,-347.0,0.0001572,2]
[400499027,1767671445604,-166.0,0.0001572,2]
[400499029,1767671445613,-336.0,0.0001572,2]
[400499030,1767671445625,-347.0,0.0001572,2]
[400499031,1767671445635,-166.0,0.0001572,2]
[400499032,1767671445644,-151.0,0.0001572,2]
[400499033,1767671445654,-152.0,0.0001572,2]
[400499034,1767671445663,-336.0,0.0001572,2]
[400499035,1767671445673,-151.0,0.0001572,2]
[400499036,1767671445682,-347.0,0.0001572,2]
[400499037,1767671445691,-336.0,0.0001572,2]
[400499038,1767671445700,-151.0,0.0001572,2]
[400499039,1767671445711,-347.0,0.0001572,2]
[400499040,1767671445720,-152.0,0.0001572,2]
[400499041,1767671445729,-336.0,0.0001572,2]
[400499042,1767671445739,-151.0,0.0001572,2]
[400499043,1767671445749,-347.0,0.0001572,2]
[400499044,1767671445758,-336.0,0.0001572,2]
[400499045,1767671445767,-347.0,0.0001572,2]
[400499046,1767671445778,-336.0,0.0001572,2]
[400499047,1767671445789,-151.0,0.0001572,2]
[400499048,1767671445798,-336.0,0.0001572,2]
[400499049,1767671445807,-338.0,0.0001572,2]
[400499050,1767671445816,-151.0,0.0001572,2]
[400499051,1767671445827,-356.87022458,0.0001572,2]
[400499052,1767671445836,-151.0,0.0001572,2]
[400499053,1767671445845,-151.0,0.0001572,2]
[400499054,1767671445854,-262.02712061,0.0001572,2]
[400499055,1767671445865,-15840.48386287,0.00015738,2]
[400499056,1767671445876,-157.83,0.000158,2]
[400499057,1767671445887,-151.0,0.00015864,2]
[400499058,1767671445898,-151.0,0.00015864,2]
[400499059,1767671445907,-1500.0,0.00015864,2]
[400499060,1767671445916,-511.34041447,0.0001589,2]
[400499061,1767671445926,-690.51130763,0.0001589,2]
[400499062,1767671445936,-692.18736728,0.0001589,2]
[400499063,1767671445945,-533.7772006,0.0001589,2]
[400499065,1767671445954,-2506.10461326,0.0001589,2]
[400499066,1767671445963,-2500.0,0.0001589,2]
[400499067,1767671445972,-5000.0,0.00015939,2]
[400499068,1767671445981,-1000.0,0.00016,2]
[400499069,1767671445990,-3000.0,0.00016,2]
[400499070,1767671445999,-3000.0,0.0001601,2]
[400499071,1767671446008,-917.483929,0.00016012,2]
[400499072,1767671446017,-917.483929,0.00016012,2]
[400499073,1767671446026,-917.483929,0.00016012,2]
[400499074,1767671446036,-917.483929,0.00016012,2]
[400499075,1767671446045,-181.282421,0.00016012,2]
[400499076,1767671446054,-181.282421,0.00016012,2]
[400499077,1767671446063,-181.282421,0.00016012,2]
[400499078,1767671446072,-181.282421,0.00016012,2]
[400499079,1767671446082,-151.0,0.00016012,2]
[400499080,1767671446091,-151.0,0.00016012,2]
[400499081,1767671446100,-3000.0,0.00016012,2]
[400499082,1767671446116,-3000.0,0.00016012,2]
[400499083,1767671446134,-1538.81751467,0.00016012,2]
[400499084,1767671446153,-3000.0,0.00016012,2]
[400499085,1767671446173,-1695.16828372,0.00016012,2]
[400499086,1767671446193,-3000.0,0.00016012,2]
[400499087,1767671446211,-3000.0,0.0001602,2]
[400499088,1767671446222,-921.85041725,0.0001602,2]
[400499090,1767671446231,-3000.0,0.0001603,2]
[400499091,1767671446240,-3000.0,0.0001604,2]
[400499092,1767671446249,-5758.300242,0.0001605,2]
[400499093,1767671446258,-5103.75794585,0.00016146,4]
[400499094,1767671446267,-427.3730192,0.00016147,2]
[400499095,1767671446276,-801.09070688,0.00016164,2]
[400499097,1767671446286,-160.0,0.00016251,3]
[400499099,1767671446295,-996.0,0.00016279,2]
[400499100,1767671446305,-161.11030349,0.00016284,2]
[400499101,1767671446314,-600.6566519,0.00016329,2]
[400499102,1767671446324,-600.6566519,0.00016329,2]
[400499103,1767671446334,-600.6566519,0.00016329,2]
[400499105,1767671446346,-600.6566519,0.00016329,2]
[400499106,1767671446359,-600.6566519,0.00016329,2]
[400499107,1767671446378,-600.6566519,0.00016329,2]
[400499108,1767671446398,-600.6566519,0.00016329,2]
[400499109,1767671446411,-600.6566519,0.00016329,2]
[400499110,1767671446423,-600.6566519,0.00016329,2]
[400499111,1767671446433,-170.73155875,0.0001633,16]
[400499112,1767671446443,-600.0,0.00016354,2]
[400499113,1767671446454,-600.6566519,0.00016356,2]
[400499114,1767671446464,-600.6566519,0.00016356,2]
[400499115,1767671446474,-600.6566519,0.00016356,2]
[400499116,1767671446483,-600.6566519,0.00016356,2]
[400499117,1767671446492,-600.6566519,0.00016356,2]
[400499118,1767671446503,-600.6566519,0.00016356,2]
[400499119,1767671446514,-600.6566519,0.00016356,2]
[400499120,1767671446526,-873.1564456,0.00016356,2]
[400499121,1767671446538,-286.81663952,0.00016412,2]
[400499122,1767671446556,-594.0421836,0.00016438,2]
[400499123,1767671446571,-500.0,0.00016438,2]
[400499124,1767671446581,-3000.0,0.00016438,2]
[400499125,1767671446590,-2490.05554086,0.0001656,2]
[400499126,1767671446601,-1024.85596201,0.0001656,2]
[400499127,1767671446613,-880.83045081,0.0001656,2]
[400499128,1767671446623,-1500.0,0.0001656,2]
[400499129,1767671446633,-19893.0,0.00016607,2]
[400499130,1767671446644,-170.73155875,0.0001664,17]
[400499131,1767671446656,-228914.38985794,0.00016731,2]
[400499132,1767671446808,-192956.53622169,0.00016731,2]
[400499133,1767671447394,-6261.79101199,0.00012858,2]
[400499134,1767671447403,-5415.13939303,0.00016731,2]
[400499135,1767671447415,-1806.18249021,0.00016731,2]
[400499136,1767671447435,-13769.552025,0.00016731,2]
[400499137,1767671447535,-150.537,0.00014658,2]
[400499138,1767671447544,-220.58784557,0.00016731,2]
[400499139,1767671447601,-5115.47760273,0.00016731,2]
[400499140,1767671447630,-285232.10141491,0.00016731,2]
[400499141,1767671447642,-9239.59067387,0.00016731,2]
[400499142,1767671447653,-877.01350082,0.00016731,2]
[400499144,1767671527583,170.61,9.3e-05,2]
[400499145,1767671585500,159.96,9.3e-05,2]
[400499146,1767671647451,165.28,9.3e-05,2]
[400499148,1767671705477,160.85,9.3e-05,2]
[400499149,1767671767481,163.06,9.3e-05,2]
[400499150,1767671825602,161.22,9.3e-05,2]
[400499151,1767671887621,162.13,9.3e-05,2]
[400499153,1767671945758,161.37,9.3e-05,2]
[400499154,1767672010289,161.76,9.3e-05,2]
[400499155,1767672065955,161.43,9.3e-05,2]
[400499156,1767672127695,161.61,9.3e-05,2]
[400499157,1767672185913,161.46,9.3e-05,2]
[400499158,1767672247374,161.53,9.3e-05,2]
[400499159,1767672305587,161.47,9.3e-05,2]
[400499160,1767672368175,161.51,9.3e-05,2]
[400499161,1767672426345,161.48,9.3e-05,2]
[400499162,1767672487657,161.48,9.3e-05,2]
[400499164,1767672545896,161.48,9.3e-05,2]
[400499165,1767672606962,161.48,9.3e-05,2]
[400499177,1767672631608,-401.15789213,0.00011234,2]
[400499210,1767672637605,-298.28210787,0.00011234,2]
[400499212,1767672637614,-578.0,0.00011234,2]
[400499214,1767672637623,-272.95175375,0.00011404,2]
[400499216,1767672637632,-310.684107,0.00011461,2]
[400499218,1767672637642,-546.6086172,0.00012308,2]
[400499220,1767672637652,-160.052,0.00012309,2]
[400499222,1767672637661,-1123.23754558,0.00012309,2]
[400499224,1767672637670,-1200.0,0.00012452,2]
[400499226,1767672637679,-300.0,0.00012453,2]
[400499228,1767672637690,-300.0,0.00012453,2]
[400499230,1767672637701,-300.0,0.00012453,2]
[400499232,1767672637710,-300.0,0.00012453,2]
[400499234,1767672637719,-504.1490014,0.00012454,2]
[400499236,1767672637731,-591.45526146,0.00012454,2]
[400499238,1767672637740,-500.0,0.00012454,2]
[400499240,1767672637750,-742.78415333,0.00012454,2]
[400499242,1767672637760,-742.78415333,0.00012454,2]
[400499244,1767672637772,-742.78415333,0.00012454,2]
[400499246,1767672637782,-742.78415333,0.00012454,2]
[400499248,1767672637791,-500.0,0.00012454,2]
[400499250,1767672637801,-742.78415333,0.00012454,2]
[400499252,1767672637811,-742.78415333,0.00012454,2]
[400499254,1767672637820,-742.78415333,0.00012454,2]
[400499256,1767672637830,-742.78415333,0.00012454,2]
[400499258,1767672637839,-500.0,0.00012454,2]
[400499260,1767672637848,-742.78415333,0.00012454,2]
[400499262,1767672637858,-742.78415333,0.00012454,2]
[400499264,1767672637867,-500.0,0.00012454,2]
[400499266,1767672637876,-742.78415333,0.00012454,2]
[400499268,1767672637886,-587.25610624,0.00012454,2]
[400499271,1767672637900,-742.78415333,0.00012454,2]
[400499273,1767672637910,-742.78415333,0.00012454,2]
[400499275,1767672637920,-742.78415333,0.00012454,2]
[400499277,1767672637931,-500.0,0.00012454,2]
[400499279,1767672637941,-500.0,0.00012454,2]
[400499281,1767672637952,-500.0,0.00012454,2]
[400499283,1767672637962,-501.23526324,0.00012454,2]
[400499285,1767672637973,-500.0,0.00012454,2]
[400499287,1767672637982,-500.0,0.00012454,2]
[400499289,1767672637993,-500.0,0.00012454,2]
[400499291,1767672638002,-500.0,0.00012454,2]
[400499293,1767672638012,-500.0,0.00012454,2]
[400499295,1767672638023,-742.78415333,0.00012454,2]
[400499297,1767672638033,-500.0,0.00012454,2]
[400499299,1767672638044,-742.78415333,0.00012454,2]
[400499301,1767672638056,-500.0,0.00012454,2]
[400499303,1767672638066,-500.0,0.00012454,2]
[400499305,1767672638077,-500.0,0.00012454,2]
[400499307,1767672638087,-500.0,0.00012454,2]
[400499309,1767672638098,-500.0,0.00012454,2]
[400499311,1767672638108,-500.0,0.00012454,2]
[400499313,1767672638118,-500.0,0.00012454,2]
[400499315,1767672638128,-500.0,0.00012454,2]
[400499317,1767672638138,-630.35502639,0.00012454,2]
[400499319,1767672638148,-624.6783044,0.00012454,2]
[400499321,1767672638162,-742.78415333,0.00012454,2]
[400499323,1767672638172,-742.78415333,0.00012454,2]
[400499325,1767672638182,-650.0,0.00012454,2]
[400499327,1767672638193,-500.0,0.00012454,2]
[400499329,1767672638205,-742.78415333,0.00012454,2]
[400499331,1767672638216,-500.0,0.00012454,2]
[400499333,1767672638227,-500.0,0.00012454,2]
[400499335,1767672638238,-742.78415333,0.00012454,2]
[400499337,1767672638248,-500.0,0.00012454,2]
[400499339,1767672638259,-575.0,0.00012454,2]
[400499341,1767672638269,-500.0,0.00012454,2]
[400499343,1767672638279,-500.0,0.00012454,2]
[400499345,1767672638290,-500.0,0.00012454,2]
[400499347,1767672638300,-500.0,0.00012454,2]
[400499349,1767672638310,-1345.97646638,0.00012454,2]
[400499351,1767672638320,-1345.97646638,0.00012454,2]
[400499353,1767672638331,-1345.97646638,0.00012454,2]
[400499355,1767672638341,-1345.97646638,0.00012454,2]
[400499357,1767672638352,-1345.97646638,0.00012454,2]
[400499358,1767672638362,-1345.97646638,0.00012454,2]
[400499360,1767672638373,-1345.97646638,0.00012454,2]
[400499362,1767672638383,-1345.97646638,0.00012454,2]
[400499364,1767672638394,-1345.97646638,0.00012454,2]
[400499365,1767672638407,-500.0,0.00012454,2]
[400499366,1767672638417,-500.0,0.00012454,2]
[400499367,1767672638428,-500.0,0.00012454,2]
[400499368,1767672638438,-500.0,0.00012454,2]
[400499369,1767672638447,-500.0,0.00012454,2]
[400499370,1767672638457,-500.0,0.00012454,2]
[400499371,1767672638467,-257.24484612,0.00012454,2]
[400499372,1767672638476,-500.0,0.00012454,2]
[400499373,1767672638486,-500.0,0.00012454,2]
[400499374,1767672638496,-500.0,0.00012454,2]
[400499375,1767672638505,-500.0,0.00012454,2]
[400499376,1767672638515,-500.0,0.00012454,2]
[400499377,1767672638524,-500.0,0.00012454,2]
[400499378,1767672638534,-500.0,0.00012454,2]
[400499379,1767672638543,-970924.52202226,0.00012455,2]
[400499380,1767672638559,-26266.26738936,0.00012455,2]
[400499381,1767672638574,-2809.21058838,0.00012455,2]
[400499382,1767672638585,-161.18556153,0.00012554,2]
[400499383,1767672638594,-151.0,0.000126,2]
[400499384,1767672638603,-300.0,0.00012807,2]
[400499385,1767672638613,-300.0,0.00012807,2]
[400499386,1767672638623,-300.0,0.00012807,2]
[400499387,1767672638633,-300.0,0.00012807,2]
[400499388,1767672638643,-300.0,0.00012807,2]
[400499389,1767672638653,-300.0,0.00012807,2]
[400499390,1767672638663,-300.0,0.00012807,2]
[400499391,1767672638673,-300.0,0.00012807,2]
[400499392,1767672638682,-300.0,0.00012807,2]
[400499393,1767672638695,-244.24092096,0.00012807,2]
[400499394,1767672638707,-55.75907904,0.00012807,2]
[400499395,1767672638716,-300.0,0.00012807,2]
[400499396,1767672638725,-300.0,0.00012807,2]
[400499397,1767672638737,-300.0,0.00012807,2]
[400499398,1767672638746,-300.0,0.00012807,2]
[400499399,1767672638756,-300.0,0.00012807,2]
[400499400,1767672638765,-157.06689296,0.00012807,2]
[400499401,1767672638778,-442.93310704,0.00012807,2]
[400499402,1767672638788,-500.0,0.00013273,2]
[400499403,1767672638798,-390.68412496,0.00013273,2]
[400499404,1767672638810,-109.31587504,0.00013273,2]
[400499405,1767672638819,-342.77213123,0.00013273,2]
[400499406,1767672638832,-157.22786877,0.00013273,2]
[400499407,1767672638841,-500.0,0.00013273,2]
[400499408,1767672638850,-500.0,0.00013273,2]
[400499409,1767672638860,-196.86475902,0.00013273,2]
[400499410,1767672638870,-500.0,0.00013273,2]
[400499411,1767672638879,-500.0,0.00013273,2]
[400499412,1767672638889,-239.72047399,0.00013273,2]
[400499413,1767672638901,-260.27952601,0.00013273,2]
[400499414,1767672638911,-297.82017399,0.00013273,2]
[400499415,1767672638922,-202.17982601,0.00013273,2]
[400499416,1767672638932,-500.0,0.00013273,2]
[400499417,1767672638942,-265.54469015,0.00013273,2]
[400499418,1767672638954,-234.45530985,0.00013273,2]
[400499419,1767672638963,-500.0,0.00013273,2]
[400499420,1767672638973,-500.0,0.00013273,2]
[400499421,1767672638982,-500.0,0.00013273,2]
[400499422,1767672638993,-500.0,0.00013273,2]
[400499423,1767672639002,-434.52469015,0.00013273,2]
[400499424,1767672639014,-65.47530985,0.00013273,2]
[400499425,1767672639024,-500.0,0.00013273,2]
[400499426,1767672639033,-500.0,0.00013273,2]
[400499427,1767672639043,-500.0,0.00013273,2]
[400499428,1767672639054,-500.0,0.00013273,2]
[400499429,1767672639064,-405.42788714,0.00013273,2]
[400499430,1767672639073,-240.74399382,0.00013273,2]
[400499431,1767672639083,-500.0,0.00013273,2]
[400499432,1767672639094,-500.0,0.00013273,2]
[400499433,1767672639104,-500.0,0.00013273,2]
[400499434,1767672639114,-500.0,0.00013273,2]
[400499435,1767672639123,-500.0,0.00013273,2]
[400499436,1767672639133,-500.0,0.00013273,2]
[400499437,1767672639143,-500.0,0.00013273,2]
[400499438,1767672639153,-500.0,0.00013273,2]
[400499439,1767672639162,-500.0,0.00013273,2]
[400499440,1767672639172,-500.0,0.00013273,2]
[400499441,1767672639182,-500.0,0.00013273,2]
[400499442,1767672639192,-73.69978451,0.00013345,2]
[400499448,1767672639817,-77.24516111,0.00013345,2]
[400499449,1767672639827,-154.32507995,0.00013345,2]
[400499450,1767672639836,-500.0,0.00013345,2]
[400499451,1767672639845,-500.0,0.00013345,2]
[400499452,1767672639855,-322.08306943,0.00013404,2]
[400499453,1767672639864,-500.0,0.00013482,2]
[400499454,1767672639874,-500.0,0.00013482,2]
[400499455,1767672639883,-169.90389408,0.00013482,2]
[400499456,1767672639892,-450.0,0.00013619,2]
[400499457,1767672639901,-300.0,0.00013673,2]
[400499458,1767672639912,-2096.47509116,0.0001368,2]
[400499459,1767672639921,-1680.0,0.00013697,2]
[400499460,1767672639931,-5184.61120129,0.00013699,2]
[400499468,1767672644070,-725.71494644,0.000129,2]
[400499506,1767672645765,-5288.01280086,0.000129,2]
[400499513,1767672645818,-1931.59,0.000129,2]
[400499598,1767672665969,161.48,9.3e-05,2]
[400499599,1767672708345,500.0,0.00030136,120]
[400499600,1767672708603,500.0,0.00030136,120]
[400499601,1767672708852,500.0,0.00030136,120]
[400499602,1767672709110,500.0,0.00030136,120]
[400499603,1767672709354,500.0,0.00030136,120]
[400499604,1767672709584,345.79936089,0.00030136,120]
[400499605,1767672727856,161.48,9.3e-05,2]
[400499606,1767672785903,161.48,9.3e-05,2]
[400499608,1767672847589,161.48,9.3e-05,2]
[400499611,1767672905863,161.48,9.3e-05,2]
[400499612,1767672967969,161.48,9.3e-05,2]
[400499613,1767673025485,161.48,9.3e-05,2]
[400499614,1767673087544,161.48,9.3e-05,2]
[400499615,1767673145697,161.48,9.3e-05,2]
[400499616,1767673207385,161.48,9.3e-05,2]
[400499617,1767673265202,161.48,9.3e-05,2]
[400499619,1767673326962,161.48,9.3e-05,2]
[400499621,1767673385337,161.48,9.3e-05,2]
[400499622,1767673447764,161.48,9.3e-05,2]
[400499623,1767673506225,161.48,9.3e-05,2]
[400499625,1767673567723,161.48,9.3e-05,2]
[400499628,1767673626120,161.48,9.3e-05,2]
[400499632,1767673687319,161.48,9.3e-05,2]
[400499636,1767673745897,161.48,9.3e-05,2]
[400499638,1767673807641,161.48,9.3e-05,2]
[400499671,1767673831773,-4096.7742434,0.00011545,2]
[400499672,1767673831784,-1200.0,0.00011662,2]
[400499673,1767673831793,-584.0,0.00011663,2]
[400499674,1767673831803,-268.49675784,0.00011782,2]
[400499675,1767673831812,-1118.56583619,0.0001192,2]
[400499676,1767673831822,-300.0,0.00012248,2]
[400499677,1767673831831,-300.0,0.00012248,2]
[400499678,1767673831840,-300.0,0.00012248,2]
[400499679,1767673831850,-300.0,0.00012248,2]
[400499681,1767673831859,-500.0,0.00012249,2]
[400499682,1767673831869,-501.23526324,0.00012249,2]
[400499683,1767673831879,-500.0,0.00012249,2]
[400499684,1767673831889,-500.0,0.00012249,2]
[400499685,1767673831899,-500.0,0.00012249,2]
[400499686,1767673831908,-500.0,0.00012249,2]
[400499687,1767673831917,-464.04987168,0.00012249,2]
[400499704,1767673837824,-35.95012832,0.00012249,2]
[400499706,1767673837834,-500.0,0.00012249,2]
[400499708,1767673837843,-500.0,0.00012249,2]
[400499709,1767673837852,-500.0,0.00012249,2]
[400499712,1767673837863,-500.0,0.00012249,2]
[400499714,1767673837872,-500.0,0.00012249,2]
[400499716,1767673837882,-500.0,0.00012249,2]
[400499718,1767673837894,-349.4212333,0.00012249,2]
[400499720,1767673837904,-500.0,0.00012249,2]
[400499722,1767673837913,-500.0,0.00012249,2]
[400499724,1767673837922,-500.0,0.00012249,2]
[400499726,1767673837931,-771.41056986,0.0001225,2]
[400499728,1767673837941,-1000000.0,0.0001225,2]
[400499730,1767673837950,-771.41056986,0.00012319,2]
[400499732,1767673837960,-21617.07275697,0.0001235,2]
[400499771,1767673839976,-160.052,0.00012353,2]
[400499772,1767673839986,-771.41056986,0.00012388,2]
[400499773,1767673839995,-160.28,0.00012449,2]
[400499774,1767673840006,-771.41056986,0.00012456,2]
[400499775,1767673840016,-124.71735909,0.00012525,2]
[400499776,1767673840033,-646.69321077,0.00012525,2]
[400499777,1767673840044,-300.0,0.00012701,2]
[400499778,1767673840055,-300.0,0.00012701,2]
[400499779,1767673840065,-300.0,0.00012701,2]
[400499780,1767673840075,-300.0,0.00012701,2]
[400499781,1767673840084,-300.0,0.00012701,2]
[400499782,1767673840093,-300.0,0.00012701,2]
[400499783,1767673840103,-300.0,0.00012701,2]
[400499784,1767673840114,-300.0,0.00012701,2]
[400499785,1767673840123,-300.0,0.00012701,2]
[400499786,1767673840133,-300.0,0.00012701,2]
[400499787,1767673840142,-300.0,0.00012701,2]
[400499788,1767673840153,-300.0,0.00012701,2]
[400499789,1767673840162,-300.0,0.00012701,2]
[400499790,1767673840174,-300.0,0.00012701,2]
[400499791,1767673840183,-300.0,0.00012701,2]
[400499792,1767673840193,-600.0,0.00012701,2]
[400499793,1767673840202,-500.0,0.00012701,2]
[400499794,1767673840212,-1680.0,0.00012828,2]
[400499795,1767673840221,-504.1490014,0.00012975,2]
[400499796,1767673840231,-245.83407884,0.00013,3]
[400499797,1767673840240,-288.59296814,0.0001317,2]
[400499803,1767673844276,-1798.53870425,0.0001317,2]
[400499804,1767673844285,-500.0,0.00013273,2]
[400499805,1767673844295,-491.75711327,0.00013273,2]
[400499806,1767673844304,-500.0,0.00013273,2]
[400499807,1767673844314,-500.0,0.00013273,2]
[400499808,1767673844323,-500.0,0.00013273,2]
[400499809,1767673844332,-500.0,0.00013273,2]
[400499810,1767673844341,-500.0,0.00013273,2]
[400499811,1767673844350,-500.0,0.00013273,2]
[400499812,1767673844359,-500.0,0.00013273,2]
[400499813,1767673844368,-500.0,0.00013273,2]
[400499814,1767673844377,-500.0,0.00013273,2]
[400499815,1767673844385,-500.0,0.00013273,2]
[400499816,1767673844395,-500.0,0.00013273,2]
[400499817,1767673844405,-500.0,0.00013273,2]
[400499818,1767673844415,-500.0,0.00013273,2]
[400499819,1767673844423,-500.0,0.00013273,2]
[400499820,1767673844433,-500.0,0.00013273,2]
[400499821,1767673844442,-500.0,0.00013273,2]
[400499822,1767673844451,-500.0,0.00013273,2]
[400499823,1767673844460,-500.0,0.00013273,2]
[400499824,1767673844469,-500.0,0.00013273,2]
[400499825,1767673844479,-500.0,0.00013273,2]
[400499826,1767673844488,-18126.46895505,0.00013316,2]
[400499827,1767673845094,-1184.44158635,0.00013316,2]
[400499828,1767673845104,-154.0,0.00013443,2]
[400499829,1767673845116,-319.0,0.00013443,2]
[400499830,1767673845127,-300.0,0.00013443,2]
[400499831,1767673845136,-2302.55841365,0.00013459,2]
[400499844,1767673845977,-115.86002347,0.00013459,2]
[400499845,1767673845987,-300.0,0.00013673,2]
[400499846,1767673845996,-309.75995653,0.00013699,2]
[400499847,1767673846010,-20026.13033348,0.00013699,2]
[400499848,1767673846019,-1128.799237,0.00013699,2]
[400499849,1767673846029,-2185.152496,0.00013699,2]
[400499850,1767673846042,-1000.0,0.00013699,2]
[400499851,1767673846051,-64957.8994758,0.00013699,2]
[400499852,1767673846060,-496.71408315,0.00013699,2]
[400499853,1767673846070,-500.0,0.00013699,2]
[400499854,1767673846081,-500.0,0.00013699,2]
[400499855,1767673846091,-500.0,0.00013699,2]
[400499856,1767673846102,-500.0,0.00013699,2]
[400499857,1767673846114,-500.0,0.00013699,2]
[400499858,1767673846123,-500.0,0.00013699,2]
[400499859,1767673846132,-500.0,0.00013699,2]
[400499860,1767673846142,-619.03545828,0.00013699,2]
[400499861,1767673846151,-504.01794605,0.00013699,2]
[400499862,1767673846161,-501.71932131,0.00013699,2]
[400499863,1767673846170,-500.0,0.00013699,2]
[400499864,1767673846179,-500.0,0.00013699,2]
[400499865,1767673846189,-500.0,0.00013699,2]
[400499866,1767673846199,-500.0,0.00013699,2]
[400499867,1767673846208,-500.0,0.00013699,2]
[400499868,1767673846218,-500.0,0.00013699,2]
[400499869,1767673846227,-351.45428073,0.00013699,2]
[400499870,1767673846237,-500.0,0.00013699,2]
[400499871,1767673846247,-500.0,0.00013699,2]
[400499872,1767673846257,-500.0,0.00013699,2]
[400499873,1767673846266,-500.0,0.00013699,2]
[400499874,1767673846277,-500.0,0.00013699,2]
[400499875,1767673846286,-500.0,0.00013699,2]
[400499876,1767673846296,-500.0,0.00013699,2]
[400499877,1767673846305,-500.0,0.00013699,2]
[400499878,1767673846315,-500.0,0.00013699,2]
[400499879,1767673846326,-500.0,0.00013699,2]
[400499880,1767673846335,-500.0,0.00013699,2]